[Event "Titled Tuesday Blitz February 28 Early 2023"]
[White "Kovalenko, Igor"]
[Black "Le, Tuan Minh"]
[WhiteFideId "14117908"]
[BlackFideId "12401153"]
[WhiteElo "2574"]
[BlackElo "2558"]
[Result "0-1"]
[Round "06"]
[TimeControl "180+2"]
[Date "2023.02.28"]
[WhiteClock "0:00:27"]
[BlackClock "0:00:09"]

1. d4 {[%clk 0:02:59]}  d5 {[%clk 0:03:00]} 2. c4 {[%clk 0:02:58]}  c6 {[%clk 0:03:00]} 3. cxd5 {[%clk 0:02:58]}  cxd5 {[%clk 0:03:01]} 4. Nc3 {[%clk 0:02:59]}  Nf6 {[%clk 0:03:01]} 5. Bf4 {[%clk 0:02:58]}  Nc6 {[%clk 0:03:01]} 6. e3 {[%clk 0:02:58]}  a6 {[%clk 0:03:02]} 7. Rc1 {[%clk 0:02:56]}  Bf5 {[%clk 0:02:52]} 8. Nf3 {[%clk 0:02:56]}  Rc8 {[%clk 0:02:52]} 9. Be2 {[%clk 0:02:54]}  e6 {[%clk 0:02:47]} 10. O-O {[%clk 0:02:54]}  Bd6 {[%clk 0:02:47]} 11. Qb3 {[%clk 0:02:53]}  Bxf4 {[%clk 0:02:46]} 12. exf4 {[%clk 0:02:53]}  Qe7 {[%clk 0:02:39]} 13. Na4 {[%clk 0:02:34]}  O-O {[%clk 0:02:29]} 14. Nb6 {[%clk 0:02:29]}  Rc7 {[%clk 0:02:28]} 15. Rfd1 {[%clk 0:02:20]}  Bg4 {[%clk 0:02:26]} 16. Rc2 {[%clk 0:01:53]}  Qd6 {[%clk 0:01:58]} 17. Ne5 {[%clk 0:01:43]}  Bxe2 {[%clk 0:01:54]} 18. Rxe2 {[%clk 0:01:42]}  Na5 {[%clk 0:01:49]} 19. Qh3 {[%clk 0:01:29]}  Qxb6 {[%clk 0:01:49]} 20. g4 {[%clk 0:01:29]}  Nc6 {[%clk 0:01:43]} 21. g5 {[%clk 0:01:28]}  Ne4 {[%clk 0:01:43]} 22. Qe3 {[%clk 0:01:25]}  Nxe5 {[%clk 0:01:43]} 23. fxe5 {[%clk 0:01:24]}  f6 {[%clk 0:00:52]} 24. exf6 {[%clk 0:01:24]}  gxf6 {[%clk 0:00:52]} 25. gxf6 {[%clk 0:01:24]}  Rxf6 {[%clk 0:00:49]} 26. f3 {[%clk 0:01:24]}  Rg7+ {[%clk 0:00:45]} 27. Kh1 {[%clk 0:01:24]}  Ng5 {[%clk 0:00:44]} 28. Rg1 {[%clk 0:01:18]}  Rfg6 {[%clk 0:00:41]} 29. Rg3 {[%clk 0:01:08]}  Nf7 {[%clk 0:00:38]} 30. Rc2 {[%clk 0:00:58]}  Qd8 {[%clk 0:00:31]} 31. f4 {[%clk 0:00:54]}  Nd6 {[%clk 0:00:31]} 32. Qe5 {[%clk 0:00:53]}  Nf5 {[%clk 0:00:21]} 33. Rg5 {[%clk 0:00:49]}  h6 {[%clk 0:00:19]} 34. Rgg2 {[%clk 0:00:42]}  Qf6 {[%clk 0:00:14]} 35. Rc8+ {[%clk 0:00:39]}  Kh7 {[%clk 0:00:14]} 36. Qb8 {[%clk 0:00:39]}  Rxg2 {[%clk 0:00:12]} 37. Rh8+ {[%clk 0:00:39]}  Kg6 {[%clk 0:00:12]} 38. Kxg2 {[%clk 0:00:38]}  Kh5+ {[%clk 0:00:12]} 39. Kf1 {[%clk 0:00:34]}  Qxd4 {[%clk 0:00:12]} 40. Qe8+ {[%clk 0:00:26]}  Kh4 {[%clk 0:00:10]} 41. Qxe6 {[%clk 0:00:26]}  Rg1+ {[%clk 0:00:08]} 42. Ke2 {[%clk 0:00:26]}  Rg2+ {[%clk 0:00:09]} 43. Kf1 {[%clk 0:00:27]}  Qf2# {[%clk 0:00:09]} 0-1


[Site "https://www.chess.com"]

[Event "Titled Tuesday Blitz February 28 Early 2023"]
[White "Deac, Bogdan-Daniel"]
[Black "Abdrlauf, Elham"]
[WhiteFideId "1226380"]
[BlackFideId "1533533"]
[WhiteElo "2649"]
[BlackElo "2476"]
[Result "0-1"]
[Round "06"]
[TimeControl "180+2"]
[Date "2023.02.28"]
[WhiteClock "0:00:03"]
[BlackClock "0:00:16"]

1. b3 {[%clk 0:03:00]}  Nf6 {[%clk 0:02:59]} 2. Bb2 {[%clk 0:03:00]}  g6 {[%clk 0:03:00]} 3. Nf3 {[%clk 0:03:01]}  Bg7 {[%clk 0:03:00]} 4. g3 {[%clk 0:03:01]}  O-O {[%clk 0:03:01]} 5. Bg2 {[%clk 0:03:02]}  c5 {[%clk 0:03:01]} 6. c4 {[%clk 0:03:02]}  Nc6 {[%clk 0:03:02]} 7. O-O {[%clk 0:03:03]}  b6 {[%clk 0:03:00]} 8. d3 {[%clk 0:02:57]}  Bb7 {[%clk 0:03:00]} 9. Nbd2 {[%clk 0:02:58]}  d5 {[%clk 0:03:00]} 10. cxd5 {[%clk 0:02:58]}  Qxd5 {[%clk 0:03:00]} 11. a3 {[%clk 0:02:48]}  Rad8 {[%clk 0:02:59]} 12. Rb1 {[%clk 0:02:48]}  Rfe8 {[%clk 0:02:58]} 13. b4 {[%clk 0:02:44]}  cxb4 {[%clk 0:02:49]} 14. axb4 {[%clk 0:02:43]}  e5 {[%clk 0:02:49]} 15. Nxe5 {[%clk 0:02:38]}  Qe6 {[%clk 0:02:44]} 16. Nxc6 {[%clk 0:02:12]}  Bxc6 {[%clk 0:02:44]} 17. Bxc6 {[%clk 0:02:13]}  Qxc6 {[%clk 0:02:45]} 18. b5 {[%clk 0:02:02]}  Qe6 {[%clk 0:02:42]} 19. Bxf6 {[%clk 0:01:37]}  Bxf6 {[%clk 0:02:38]} 20. Ne4 {[%clk 0:01:38]}  Bg7 {[%clk 0:02:38]} 21. Qa4 {[%clk 0:01:22]}  h6 {[%clk 0:02:26]} 22. Rfe1 {[%clk 0:00:50]}  Rd5 {[%clk 0:01:57]} 23. Qb3 {[%clk 0:00:45]}  Red8 {[%clk 0:01:49]} 24. Kg2 {[%clk 0:00:29]}  Kh7 {[%clk 0:01:20]} 25. Rec1 {[%clk 0:00:26]}  R8d7 {[%clk 0:01:17]} 26. Rc6 {[%clk 0:00:23]}  Qe5 {[%clk 0:01:13]} 27. f4 {[%clk 0:00:05]}  Qd4 {[%clk 0:01:13]} 28. Qc2 {[%clk 0:00:04]}  Re7 {[%clk 0:01:05]} 29. Nf2 {[%clk 0:00:03]}  Qe3 {[%clk 0:00:21]} 30. Qb3 {[%clk 0:00:03]}  Rh5 {[%clk 0:00:18]} 31. Rc2 {[%clk 0:00:02]}  Rxh2+ {[%clk 0:00:17]} 32. Kxh2 {[%clk 0:00:02]}  Qxf2+ {[%clk 0:00:18]} 33. Kh3 {[%clk 0:00:03]}  Re3 {[%clk 0:00:16]} 0-1


[Site "https://www.chess.com"]

[Event "Titled Tuesday Blitz February 28 Early 2023"]
[White "Bews, Steven"]
[Black "Bortnyk, Olexandr"]
[WhiteFideId "2400529"]
[BlackFideId "14120828"]
[WhiteElo "2587"]
[BlackElo "2734"]
[Result "1-0"]
[Round "06"]
[TimeControl "180+2"]
[Date "2023.02.28"]
[WhiteClock "0:00:34"]
[BlackClock "0:00:03"]

1. e4 {[%clk 0:03:00]}  Nf6 {[%clk 0:02:59]} 2. e5 {[%clk 0:02:55]}  Nd5 {[%clk 0:02:59]} 3. Nf3 {[%clk 0:02:56]}  d6 {[%clk 0:03:00]} 4. d4 {[%clk 0:02:56]}  dxe5 {[%clk 0:03:00]} 5. Nxe5 {[%clk 0:02:56]}  c6 {[%clk 0:03:01]} 6. c4 {[%clk 0:02:55]}  Nb4 {[%clk 0:03:01]} 7. Be3 {[%clk 0:02:46]}  Bf5 {[%clk 0:03:01]} 8. Nd3 {[%clk 0:02:46]}  e5 {[%clk 0:02:59]} 9. Nxb4 {[%clk 0:02:38]}  Bxb4+ {[%clk 0:03:00]} 10. Nc3 {[%clk 0:02:39]}  Qa5 {[%clk 0:02:54]} 11. Qb3 {[%clk 0:02:20]}  exd4 {[%clk 0:02:48]} 12. Bxd4 {[%clk 0:02:20]}  O-O {[%clk 0:02:48]} 13. O-O-O {[%clk 0:02:13]}  Na6 {[%clk 0:02:42]} 14. Bd3 {[%clk 0:02:06]}  Rad8 {[%clk 0:01:58]} 15. Bxf5 {[%clk 0:01:56]}  Qxf5 {[%clk 0:01:59]} 16. Qc2 {[%clk 0:01:48]}  Qe6 {[%clk 0:01:43]} 17. b3 {[%clk 0:01:40]}  Ba3+ {[%clk 0:01:19]} 18. Kb1 {[%clk 0:01:39]}  Nb4 {[%clk 0:01:20]} 19. Qe4 {[%clk 0:01:35]}  Qh6 {[%clk 0:00:39]} 20. Rhe1 {[%clk 0:01:20]}  b6 {[%clk 0:00:28]} 21. f4 {[%clk 0:00:57]}  c5 {[%clk 0:00:23]} 22. Be3 {[%clk 0:00:55]}  Qf6 {[%clk 0:00:23]} 23. Qe5 {[%clk 0:00:50]}  Qg6+ {[%clk 0:00:21]} 24. Qe4 {[%clk 0:00:50]}  Nd3 {[%clk 0:00:17]} 25. Qxg6 {[%clk 0:00:47]}  fxg6 {[%clk 0:00:14]} 26. Rf1 {[%clk 0:00:47]}  Rfe8 {[%clk 0:00:14]} 27. Nd5 {[%clk 0:00:36]}  Rxd5 {[%clk 0:00:03]} 28. cxd5 {[%clk 0:00:37]}  Rxe3 {[%clk 0:00:04]} 29. Rf3 {[%clk 0:00:37]}  c4 {[%clk 0:00:05]} 30. Rxe3 {[%clk 0:00:35]}  Nxf4 {[%clk 0:00:03]} 31. d6 {[%clk 0:00:34]} 1-0


[Site "https://www.chess.com"]

[Event "Titled Tuesday Blitz February 28 Early 2023"]
[White "Talibov, Shiroghlan"]
[Black "So, Wesley"]
[WhiteFideId "13429078"]
[BlackFideId "5202213"]
[WhiteElo "2218"]
[BlackElo "2739"]
[Result "0-1"]
[Round "06"]
[TimeControl "180+2"]
[Date "2023.02.28"]
[WhiteClock "0:00:28"]
[BlackClock "0:01:39"]

1. e4 {[%clk 0:02:56]}  e5 {[%clk 0:02:56]} 2. Nf3 {[%clk 0:02:55]}  Nc6 {[%clk 0:02:57]} 3. Nc3 {[%clk 0:02:48]}  Nf6 {[%clk 0:02:57]} 4. Bb5 {[%clk 0:02:47]}  Bb4 {[%clk 0:02:55]} 5. O-O {[%clk 0:02:45]}  d6 {[%clk 0:02:46]} 6. d3 {[%clk 0:02:39]}  O-O {[%clk 0:02:45]} 7. Bg5 {[%clk 0:02:28]}  Ne7 {[%clk 0:02:43]} 8. Re1 {[%clk 0:02:15]}  c6 {[%clk 0:02:41]} 9. Ba4 {[%clk 0:02:15]}  Ng6 {[%clk 0:02:39]} 10. d4 {[%clk 0:02:14]}  h6 {[%clk 0:02:35]} 11. Bd2 {[%clk 0:02:01]}  Re8 {[%clk 0:02:33]} 12. dxe5 {[%clk 0:01:59]}  dxe5 {[%clk 0:02:32]} 13. a3 {[%clk 0:01:59]}  Ba5 {[%clk 0:02:14]} 14. Qe2 {[%clk 0:01:55]}  Bg4 {[%clk 0:02:10]} 15. Rad1 {[%clk 0:01:36]}  Nh4 {[%clk 0:01:58]} 16. Bg5 {[%clk 0:01:06]}  hxg5 {[%clk 0:01:59]} 17. Rxd8 {[%clk 0:01:04]}  Raxd8 {[%clk 0:02:00]} 18. Rd1 {[%clk 0:01:01]}  Bxc3 {[%clk 0:01:55]} 19. bxc3 {[%clk 0:00:53]}  Nxe4 {[%clk 0:01:47]} 20. Rxd8 {[%clk 0:00:49]}  Rxd8 {[%clk 0:01:48]} 21. h3 {[%clk 0:00:45]}  Bxf3 {[%clk 0:01:46]} 22. gxf3 {[%clk 0:00:39]}  Nxc3 {[%clk 0:01:46]} 23. Qe3 {[%clk 0:00:30]}  Nxa4 {[%clk 0:01:42]} 24. Qxa7 {[%clk 0:00:29]}  Rd1+ {[%clk 0:01:40]} 25. Kh2 {[%clk 0:00:28]}  Nxf3+ {[%clk 0:01:39]} 26. Kg3 {[%clk 0:00:28]}  e4 {[%clk 0:01:39]} 0-1


[Site "https://www.chess.com"]

[Event "Titled Tuesday Blitz February 28 Early 2023"]
[White "Caruana, Fabiano"]
[Black "Galchenko, Matvey"]
[WhiteFideId "2020009"]
[BlackFideId "24175480"]
[WhiteElo "2818"]
[BlackElo "2404"]
[Result "1-0"]
[Round "06"]
[TimeControl "180+2"]
[Date "2023.02.28"]
[WhiteClock "0:01:05"]
[BlackClock "0:00:17"]

1. e4 {[%clk 0:03:00]}  e6 {[%clk 0:02:59]} 2. d4 {[%clk 0:03:00]}  d5 {[%clk 0:03:00]} 3. Nc3 {[%clk 0:03:00]}  Bb4 {[%clk 0:03:00]} 4. e5 {[%clk 0:03:00]}  Ne7 {[%clk 0:03:01]} 5. a3 {[%clk 0:03:00]}  Bxc3+ {[%clk 0:03:01]} 6. bxc3 {[%clk 0:03:01]}  c5 {[%clk 0:03:02]} 7. h4 {[%clk 0:03:01]}  Qc7 {[%clk 0:03:02]} 8. h5 {[%clk 0:03:00]}  cxd4 {[%clk 0:03:02]} 9. cxd4 {[%clk 0:02:59]}  Qc3+ {[%clk 0:03:03]} 10. Bd2 {[%clk 0:03:00]}  Qxd4 {[%clk 0:03:04]} 11. Nf3 {[%clk 0:03:00]}  Qe4+ {[%clk 0:03:05]} 12. Be2 {[%clk 0:03:01]}  Nf5 {[%clk 0:03:05]} 13. O-O {[%clk 0:02:59]}  Nc6 {[%clk 0:03:00]} 14. Re1 {[%clk 0:02:53]}  O-O {[%clk 0:02:51]} 15. h6 {[%clk 0:02:49]}  gxh6 {[%clk 0:02:43]} 16. Bd3 {[%clk 0:02:46]}  Qg4 {[%clk 0:02:41]} 17. Bxf5 {[%clk 0:02:46]}  Qxf5 {[%clk 0:02:36]} 18. Bxh6 {[%clk 0:02:45]}  Qg6 {[%clk 0:02:01]} 19. Bxf8 {[%clk 0:02:43]}  Kxf8 {[%clk 0:02:01]} 20. c4 {[%clk 0:02:32]}  Ne7 {[%clk 0:01:45]} 21. cxd5 {[%clk 0:01:52]}  Nxd5 {[%clk 0:01:43]} 22. Qd4 {[%clk 0:01:52]}  Bd7 {[%clk 0:01:42]} 23. Re4 {[%clk 0:01:50]}  b6 {[%clk 0:01:18]} 24. Rc1 {[%clk 0:01:47]}  Qh6 {[%clk 0:01:12]} 25. Rc2 {[%clk 0:01:42]}  Rd8 {[%clk 0:01:10]} 26. Rg4 {[%clk 0:01:34]}  Be8 {[%clk 0:00:54]} 27. Ng5 {[%clk 0:01:30]}  Qg6 {[%clk 0:00:46]} 28. Rc1 {[%clk 0:01:18]}  Qf5 {[%clk 0:00:45]} 29. Rg3 {[%clk 0:01:15]}  Rd7 {[%clk 0:00:33]} 30. Qh4 {[%clk 0:01:12]}  f6 {[%clk 0:00:25]} 31. exf6 {[%clk 0:01:05]}  Nxf6 {[%clk 0:00:17]} 32. Rf3 {[%clk 0:01:05]}  Qg6 {[%clk 0:00:17]} 33. Rxf6+ {[%clk 0:01:05]} 1-0


[Site "https://www.chess.com"]

[Event "Titled Tuesday Blitz February 28 Early 2023"]
[White "Yeletsky, Ivan"]
[Black "Bluebaum, Matthias"]
[WhiteFideId "24180327"]
[BlackFideId "24651516"]
[WhiteElo "2414"]
[BlackElo "2638"]
[Result "0-1"]
[Round "06"]
[TimeControl "180+2"]
[Date "2023.02.28"]
[WhiteClock "0:00:02"]
[BlackClock "0:00:22"]

1. e4 {[%clk 0:03:00]}  e6 {[%clk 0:03:00]} 2. d4 {[%clk 0:02:58]}  d5 {[%clk 0:03:01]} 3. e5 {[%clk 0:02:59]}  c5 {[%clk 0:03:01]} 4. c3 {[%clk 0:02:59]}  Nc6 {[%clk 0:03:02]} 5. Na3 {[%clk 0:02:59]}  cxd4 {[%clk 0:02:58]} 6. cxd4 {[%clk 0:02:58]}  Bb4+ {[%clk 0:02:54]} 7. Bd2 {[%clk 0:02:57]}  Bxa3 {[%clk 0:02:54]} 8. bxa3 {[%clk 0:02:58]}  Nxd4 {[%clk 0:02:52]} 9. Qa4+ {[%clk 0:02:58]}  Nc6 {[%clk 0:02:53]} 10. Nf3 {[%clk 0:02:58]}  Ne7 {[%clk 0:02:53]} 11. Bd3 {[%clk 0:02:56]}  Bd7 {[%clk 0:02:48]} 12. Qg4 {[%clk 0:02:47]}  Ng6 {[%clk 0:02:47]} 13. O-O {[%clk 0:02:45]}  O-O {[%clk 0:02:18]} 14. Rae1 {[%clk 0:02:42]}  f5 {[%clk 0:01:39]} 15. exf6 {[%clk 0:02:24]}  Qxf6 {[%clk 0:01:39]} 16. Ng5 {[%clk 0:02:24]}  h6 {[%clk 0:01:16]} 17. Nf3 {[%clk 0:02:11]}  Nge5 {[%clk 0:01:03]} 18. Nxe5 {[%clk 0:02:10]}  Nxe5 {[%clk 0:01:04]} 19. Rxe5 {[%clk 0:01:56]}  Qxe5 {[%clk 0:01:05]} 20. Qg6 {[%clk 0:01:57]}  Rf6 {[%clk 0:01:04]} 21. Qh7+ {[%clk 0:01:56]}  Kf7 {[%clk 0:01:04]} 22. Re1 {[%clk 0:01:41]}  Qd4 {[%clk 0:01:05]} 23. Be3 {[%clk 0:01:41]}  Qc3 {[%clk 0:01:04]} 24. Rc1 {[%clk 0:01:39]}  Qe5 {[%clk 0:00:55]} 25. h4 {[%clk 0:01:13]}  Rc8 {[%clk 0:00:54]} 26. Rd1 {[%clk 0:01:13]}  Qh5 {[%clk 0:00:47]} 27. Rb1 {[%clk 0:01:09]}  b6 {[%clk 0:00:47]} 28. Rb4 {[%clk 0:01:02]}  e5 {[%clk 0:00:45]} 29. Bg5 {[%clk 0:00:51]}  Rg6 {[%clk 0:00:25]} 30. f3 {[%clk 0:00:11]}  Rxg5 {[%clk 0:00:22]} 31. hxg5 {[%clk 0:00:11]}  Rc1+ {[%clk 0:00:19]} 32. Kf2 {[%clk 0:00:11]}  Qxg5 {[%clk 0:00:20]} 33. Qh8 {[%clk 0:00:02]}  d4 {[%clk 0:00:20]} 34. Bc4+ {[%clk 0:00:01]}  Ke7 {[%clk 0:00:20]} 35. Qg8 {[%clk 0:00:01]}  Qh4+ {[%clk 0:00:20]} 36. Ke2 {[%clk 0:00:01]}  Qe1+ {[%clk 0:00:21]} 37. Kd3 {[%clk 0:00:02]}  Qe3# {[%clk 0:00:22]} 0-1


[Site "https://www.chess.com"]

[Event "Titled Tuesday Blitz February 28 Early 2023"]
[White "Adhiban, B."]
[Black "Ohanyan, Emin"]
[WhiteFideId "5018471"]
[BlackFideId "13312022"]
[WhiteElo "2587"]
[BlackElo "2403"]
[Result "0-1"]
[Round "06"]
[TimeControl "180+2"]
[Date "2023.02.28"]
[WhiteClock "0:00:43"]
[BlackClock "0:00:04"]

1. e4 {[%clk 0:02:59]}  e5 {[%clk 0:03:00]} 2. f4 {[%clk 0:02:59]}  d5 {[%clk 0:02:59]} 3. exd5 {[%clk 0:02:58]}  exf4 {[%clk 0:02:48]} 4. Bb5+ {[%clk 0:02:56]}  Nd7 {[%clk 0:02:36]} 5. Nf3 {[%clk 0:02:48]}  Nf6 {[%clk 0:02:35]} 6. d4 {[%clk 0:02:46]}  Nxd5 {[%clk 0:02:32]} 7. O-O {[%clk 0:02:45]}  c6 {[%clk 0:02:30]} 8. Bd3 {[%clk 0:02:43]}  Be7 {[%clk 0:02:24]} 9. Nc3 {[%clk 0:02:43]}  N7f6 {[%clk 0:02:21]} 10. Nxd5 {[%clk 0:02:38]}  Nxd5 {[%clk 0:02:20]} 11. c4 {[%clk 0:02:33]}  Ne3 {[%clk 0:02:17]} 12. Bxe3 {[%clk 0:02:33]}  fxe3 {[%clk 0:02:18]} 13. Qc2 {[%clk 0:02:23]}  Bg4 {[%clk 0:02:09]} 14. Rae1 {[%clk 0:02:16]}  Bxf3 {[%clk 0:01:56]} 15. Rxf3 {[%clk 0:02:17]}  Qxd4 {[%clk 0:01:56]} 16. Kh1 {[%clk 0:02:16]}  O-O-O {[%clk 0:01:45]} 17. Rfxe3 {[%clk 0:02:15]}  Bf6 {[%clk 0:01:41]} 18. b3 {[%clk 0:02:09]}  Kb8 {[%clk 0:01:37]} 19. g3 {[%clk 0:02:08]}  h5 {[%clk 0:01:35]} 20. h3 {[%clk 0:02:03]}  Rd6 {[%clk 0:01:02]} 21. c5 {[%clk 0:01:50]}  Rd5 {[%clk 0:01:00]} 22. b4 {[%clk 0:01:51]}  Rhd8 {[%clk 0:00:59]} 23. Bc4 {[%clk 0:01:49]}  Re5 {[%clk 0:00:51]} 24. Rxe5 {[%clk 0:01:41]}  Bxe5 {[%clk 0:00:52]} 25. Qe4 {[%clk 0:01:35]}  f6 {[%clk 0:00:44]} 26. b5 {[%clk 0:01:23]}  Qxc5 {[%clk 0:00:44]} 27. Bf1 {[%clk 0:01:08]}  Bxg3 {[%clk 0:00:37]} 28. Rb1 {[%clk 0:01:05]}  Qd5 {[%clk 0:00:35]} 29. Bg2 {[%clk 0:01:05]}  Qxe4 {[%clk 0:00:31]} 30. Bxe4 {[%clk 0:01:06]}  c5 {[%clk 0:00:27]} 31. b6 {[%clk 0:01:07]}  axb6 {[%clk 0:00:23]} 32. Rxb6 {[%clk 0:01:06]}  Rd7 {[%clk 0:00:24]} 33. Kg2 {[%clk 0:01:06]}  Be5 {[%clk 0:00:23]} 34. h4 {[%clk 0:01:05]}  c4 {[%clk 0:00:22]} 35. Kf3 {[%clk 0:01:03]}  c3 {[%clk 0:00:22]} 36. a4 {[%clk 0:01:03]}  Rc7 {[%clk 0:00:20]} 37. Bc2 {[%clk 0:01:03]}  Ka7 {[%clk 0:00:20]} 38. Rb5 {[%clk 0:01:00]}  Rc4 {[%clk 0:00:10]} 39. a5 {[%clk 0:00:58]}  Ka6 {[%clk 0:00:05]} 40. Rb6+ {[%clk 0:00:53]}  Kxa5 {[%clk 0:00:05]} 41. Rxb7 {[%clk 0:00:54]}  Rxh4 {[%clk 0:00:05]} 42. Rxg7 {[%clk 0:00:54]}  Rh2 {[%clk 0:00:05]} 43. Ra7+ {[%clk 0:00:47]}  Kb6 {[%clk 0:00:05]} 44. Ra2 {[%clk 0:00:47]}  h4 {[%clk 0:00:05]} 45. Kg4 {[%clk 0:00:48]}  Bg3 {[%clk 0:00:02]} 46. Kf3 {[%clk 0:00:46]}  Rd2 {[%clk 0:00:03]} 47. Kg4 {[%clk 0:00:46]}  Kb5 {[%clk 0:00:03]} 48. Kh3 {[%clk 0:00:44]}  Kb4 {[%clk 0:00:03]} 49. Kg4 {[%clk 0:00:43]}  Rxc2 {[%clk 0:00:02]} 50. Rxc2 {[%clk 0:00:44]}  Kb3 {[%clk 0:00:03]} 51. Re2 {[%clk 0:00:44]}  c2 {[%clk 0:00:03]} 52. Rxc2 {[%clk 0:00:43]}  Kxc2 {[%clk 0:00:04]} 0-1


[Site "https://www.chess.com"]

[Event "Titled Tuesday Blitz February 28 Early 2023"]
[White "Drygalov, Andrey"]
[Black "Sarana, Alexey"]
[WhiteFideId "24171735"]
[BlackFideId "24133795"]
[WhiteElo "2471"]
[BlackElo "2717"]
[Result "1-0"]
[Round "06"]
[TimeControl "180+2"]
[Date "2023.02.28"]
[WhiteClock "0:00:10"]
[BlackClock "0:00:01"]

1. e4 {[%clk 0:02:58]}  c5 {[%clk 0:02:59]} 2. Nf3 {[%clk 0:02:58]}  d6 {[%clk 0:03:00]} 3. Bb5+ {[%clk 0:02:58]}  Nd7 {[%clk 0:02:59]} 4. O-O {[%clk 0:02:58]}  a6 {[%clk 0:02:56]} 5. Bd3 {[%clk 0:02:58]}  e6 {[%clk 0:02:56]} 6. c3 {[%clk 0:02:55]}  Be7 {[%clk 0:02:54]} 7. Bc2 {[%clk 0:02:52]}  b5 {[%clk 0:02:48]} 8. d4 {[%clk 0:02:52]}  Bb7 {[%clk 0:02:49]} 9. Re1 {[%clk 0:02:53]}  Ngf6 {[%clk 0:02:44]} 10. Nbd2 {[%clk 0:02:53]}  Qc7 {[%clk 0:02:44]} 11. Nf1 {[%clk 0:02:53]}  O-O {[%clk 0:02:43]} 12. Ng3 {[%clk 0:02:53]}  Rfd8 {[%clk 0:02:41]} 13. h3 {[%clk 0:02:43]}  Nf8 {[%clk 0:02:41]} 14. Be3 {[%clk 0:02:38]}  a5 {[%clk 0:02:41]} 15. a4 {[%clk 0:02:36]}  b4 {[%clk 0:02:40]} 16. c4 {[%clk 0:02:36]}  cxd4 {[%clk 0:02:38]} 17. Qxd4 {[%clk 0:02:36]}  N6d7 {[%clk 0:02:17]} 18. Bg5 {[%clk 0:02:24]}  e5 {[%clk 0:01:56]} 19. Qd3 {[%clk 0:02:16]}  Nc5 {[%clk 0:01:56]} 20. Qe2 {[%clk 0:02:13]}  b3 {[%clk 0:01:49]} 21. Bxe7 {[%clk 0:01:50]}  Qxe7 {[%clk 0:01:50]} 22. Bd1 {[%clk 0:01:47]}  Nfe6 {[%clk 0:01:43]} 23. Ra3 {[%clk 0:01:44]}  Nf4 {[%clk 0:01:24]} 24. Qd2 {[%clk 0:01:44]}  Qf6 {[%clk 0:01:19]} 25. Qe3 {[%clk 0:01:19]}  Bc6 {[%clk 0:00:48]} 26. Bxb3 {[%clk 0:01:12]}  Rab8 {[%clk 0:00:48]} 27. Qc3 {[%clk 0:01:13]}  Rb4 {[%clk 0:00:39]} 28. Bc2 {[%clk 0:01:13]}  Bxa4 {[%clk 0:00:30]} 29. b3 {[%clk 0:01:12]}  Bc6 {[%clk 0:00:24]} 30. Rxa5 {[%clk 0:01:11]}  Rdb8 {[%clk 0:00:25]} 31. Nd2 {[%clk 0:01:06]}  g6 {[%clk 0:00:20]} 32. Qe3 {[%clk 0:01:00]}  h5 {[%clk 0:00:20]} 33. Ne2 {[%clk 0:00:58]}  Nce6 {[%clk 0:00:19]} 34. Nxf4 {[%clk 0:00:51]}  Nxf4 {[%clk 0:00:20]} 35. Nf3 {[%clk 0:00:49]}  Ne6 {[%clk 0:00:19]} 36. Ra6 {[%clk 0:00:45]}  Rc8 {[%clk 0:00:19]} 37. Qd2 {[%clk 0:00:42]}  Rb7 {[%clk 0:00:06]} 38. Qxd6 {[%clk 0:00:36]}  Rd7 {[%clk 0:00:07]} 39. Qxe5 {[%clk 0:00:35]}  Qd8 {[%clk 0:00:07]} 40. Qc3 {[%clk 0:00:28]}  Bb7 {[%clk 0:00:06]} 41. Raa1 {[%clk 0:00:25]}  Qc7 {[%clk 0:00:05]} 42. Rad1 {[%clk 0:00:24]}  Rxd1 {[%clk 0:00:04]} 43. Rxd1 {[%clk 0:00:25]}  Nf4 {[%clk 0:00:04]} 44. Qe5 {[%clk 0:00:22]}  Qxe5 {[%clk 0:00:02]} 45. Nxe5 {[%clk 0:00:22]}  Re8 {[%clk 0:00:03]} 46. Nf3 {[%clk 0:00:20]}  Ne2+ {[%clk 0:00:03]} 47. Kf1 {[%clk 0:00:20]}  Nc3 {[%clk 0:00:04]} 48. Re1 {[%clk 0:00:15]}  Na2 {[%clk 0:00:03]} 49. e5 {[%clk 0:00:12]}  Nb4 {[%clk 0:00:03]} 50. Be4 {[%clk 0:00:13]}  Bc8 {[%clk 0:00:04]} 51. Bd5 {[%clk 0:00:11]}  Rd8 {[%clk 0:00:04]} 52. Rd1 {[%clk 0:00:11]}  Kg7 {[%clk 0:00:04]} 53. Ke2 {[%clk 0:00:10]}  Bf5 {[%clk 0:00:05]} 54. Rd2 {[%clk 0:00:10]}  Re8 {[%clk 0:00:03]} 55. Ke3 {[%clk 0:00:10]}  Bc2 {[%clk 0:00:02]} 56. Kd4 {[%clk 0:00:06]}  Bf5 {[%clk 0:00:02]} 57. Kc3 {[%clk 0:00:06]}  Na6 {[%clk 0:00:02]} 58. b4 {[%clk 0:00:07]}  Rc8 {[%clk 0:00:02]} 59. Nd4 {[%clk 0:00:07]}  Nc7 {[%clk 0:00:02]} 60. Bc6 {[%clk 0:00:07]}  Be6 {[%clk 0:00:01]} 61. Nxe6+ {[%clk 0:00:07]}  Nxe6 {[%clk 0:00:02]} 62. Bd5 {[%clk 0:00:08]}  Nc7 {[%clk 0:00:01]} 63. Kb3 {[%clk 0:00:07]}  Rd8 {[%clk 0:00:01]} 64. b5 {[%clk 0:00:08]}  Kf8 {[%clk 0:00:02]} 65. Kb4 {[%clk 0:00:08]}  Ke7 {[%clk 0:00:01]} 66. b6 {[%clk 0:00:08]}  Ne6 {[%clk 0:00:02]} 67. Rd3 {[%clk 0:00:08]}  Nf4 {[%clk 0:00:02]} 68. Rf3 {[%clk 0:00:08]}  Nxd5+ {[%clk 0:00:02]} 69. cxd5 {[%clk 0:00:09]}  Rxd5 {[%clk 0:00:02]} 70. b7 {[%clk 0:00:10]}  Rd8 {[%clk 0:00:01]} 71. Kc5 {[%clk 0:00:10]} 1-0


[Site "https://www.chess.com"]